bitfinex/quotes_SOLUSD_20250630
["timestamp","ask_amount","ask_price","bid_price","bid_amount"]
[1751248342040,16.04,152.41,152.38,0.04]
[1751248343146,5.24934383,152.4,152.38,0.04]
[1751248344561,16.04,152.39,152.38,0.04]
[1751248345747,16.32432314,152.39,152.38,0.04]
[1751248346664,21.57401143,152.39,152.38,0.04]
[1751248347440,40.22366029,152.39,152.38,0.04]
[1751248347639,0.28432314,152.38,152.37,5.7]
[1751248348766,5.53435595,152.38,152.37,5.7]
[1751248349747,31.53435595,152.38,152.37,5.7]
[1751248350860,24.18400481,152.38,152.37,5.7]
[1751248351073,26.28432314,152.36,152.35,0.07545]
[1751248351241,42.32432314,152.36,152.35,0.07545]
[1751248352064,47.57504511,152.36,152.35,0.07545]
[1751248352455,66.22469397,152.36,152.35,0.07545]
[1751248353245,66.22469397,152.36,152.33,0.04]
[1751248353246,0.28432314,152.34,152.33,0.04]
[1751248353440,18.64964886,152.33,152.32,0.04]
[1751248353851,18.64964886,152.33,152.31,0.04]
[1751248353852,0.28432314,152.32,152.31,0.04]
[1751248354052,40.22607284,152.32,152.31,0.04]
[1751248354769,40.22607284,152.32,152.28,0.04]
[1751248354770,26.0,152.29,152.28,0.04]
[1751248354972,42.04,152.29,152.28,0.04]
[1751248356163,47.5774586,152.29,152.28,0.04]
[1751248358553,66.22710746,152.29,152.28,0.04]
[1751248358751,79.35994612,152.29,152.26,0.04]
[1751248358950,26.0,152.25,152.21,5.74]
[1751248359259,26.0,152.22,152.21,5.74]
[1751248359459,47.29555117,152.22,152.21,5.74]
[1751248360467,42.04,152.22,152.21,5.74]
[1751248366183,16.04,152.22,152.21,5.74]
[1751248366360,21.29555117,152.22,152.21,5.74]
[1751248366567,16.04,152.22,152.21,5.74]
[1751248373579,26.0,152.23,152.21,10.99589217]
[1751248373884,26.0,152.23,152.21,5.74]
[1751248376069,26.0,152.23,152.21,10.99588298]
[1751248376272,26.0,152.23,152.21,5.74]
[1751248379278,26.0,152.23,152.21,10.99569282]
[1751248379472,42.06,152.24,152.21,10.99569282]
[1751248380166,26.0,152.24,152.21,10.99569282]
[1751248380770,42.06,152.25,152.21,10.99569282]
[1751248381688,26.0,152.24,152.21,10.99569282]
[1751248381889,42.06,152.24,152.21,10.99569282]
[1751248382280,26.0,152.24,152.21,10.99569282]
[1751248386995,42.06,152.25,152.21,10.99569282]
[1751248387378,26.0,152.25,152.21,10.99569282]
[1751248390190,26.0,152.25,152.21,5.74]
[1751248390601,26.0,152.25,152.21,10.99576338]
[1751248397220,31.25456882,152.25,152.22,5.7]
[1751248399889,26.0,152.25,152.22,5.7]
[1751248402917,26.0,152.25,152.22,10.95550874]
[1751248403608,26.0,152.25,152.22,5.7]
[1751248404713,31.25452268,152.25,152.22,5.7]
[1751248408610,16.04,152.24,152.22,5.7]
[1751248409219,21.29503657,152.24,152.22,5.7]
[1751248414321,5.25503657,152.24,152.22,5.7]
[1751248414538,16.04,152.23,152.22,5.7]
[1751248416707,21.29520593,152.23,152.22,5.7]
[1751248441542,16.04,152.23,152.22,5.7]
[1751248444018,21.29520593,152.23,152.22,5.7]
[1751248445141,21.29520593,152.23,152.21,0.04]
[1751248446043,16.04,152.23,152.21,0.04]
[1751248450155,16.04,152.24,152.21,0.04]
[1751248451743,31.25459557,152.25,152.21,0.04]
[1751248451947,47.29459557,152.25,152.21,0.04]
[1751248464951,0.28432314,152.24,152.21,0.04]
[1751248465159,16.04,152.23,152.21,0.04]
[1751248467167,5.25555117,152.22,152.21,0.04]
[1751248467371,31.25555117,152.22,152.21,0.04]
[1751248469559,26.0,152.22,152.21,0.04]
[1751248469757,42.04,152.22,152.21,0.04]
[1751248471068,26.0,152.22,152.21,0.04]
[1751248473754,16.04,152.23,152.21,0.04]
[1751248475446,172.9,152.26,152.21,0.04]
[1751248475760,42.04,152.26,152.21,6.4576]
[1751248475966,26.0,152.26,152.21,6.4576]
[1751248477460,26.0,152.26,152.22,5.25555117]
[1751248478963,16.04,152.27,152.22,5.25555117]
[1751248480377,5.25362017,152.28,152.22,5.25555117]
[1751248480557,21.29362017,152.28,152.22,5.25555117]
[1751248485777,16.04,152.28,152.22,5.25555117]
[1751248485969,26.0,152.28,152.24,1.5391]
[1751248487665,31.25353397,152.28,152.24,1.5391]
[1751248493182,0.28432314,152.27,152.21,6.4576]
[1751248493479,16.04,152.26,152.21,0.04]
[1751248494679,5.25451559,152.25,152.21,0.04]
[1751248494875,5.25451559,152.25,152.21,5.74]
[1751248497169,31.25451559,152.25,152.21,5.74]
[1751248497579,44.39080458,152.25,152.21,5.74]
[1751248497778,26.0,152.22,152.21,5.74]
[1751248497985,42.04,152.22,152.21,5.74]
[1751248498290,47.29555117,152.22,152.21,5.74]
[1751248501896,42.04,152.22,152.21,5.74]
[1751248502491,47.29555117,152.22,152.21,5.74]
[1751248513804,42.04,152.22,152.21,5.74]
[1751248514013,26.0,152.22,152.21,5.74]
[1751248518307,16.04,152.23,152.21,5.74]
[1751248520213,31.25461553,152.25,152.21,5.74]
[1751248520383,16.04,152.24,152.21,5.74]
[1751248521495,16.04,152.24,152.21,10.99589143]
[1751248521703,26.0,152.25,152.21,10.99589143]
[1751248521897,16.04,152.24,152.21,5.74]
[1751248523097,16.04,152.24,152.21,10.9958152]
[1751248528994,26.0,152.25,152.21,10.9958152]
[1751248529196,13.41711853,152.3,152.21,12.5786152]
[1751248529416,26.0,152.26,152.21,7.3228]
[1751248529596,42.02,152.26,152.21,7.3228]
[1751248530319,26.0,152.26,152.21,7.3228]
[1751248530496,16.02,152.25,152.21,7.3228]
[1751248530699,21.27472728,152.25,152.21,7.3228]
[1751248532495,21.27472728,152.25,152.21,5.74]
[1751248542031,26.0,152.26,152.21,10.99585449]
[1751248542218,0.28432314,152.3,152.22,1.5589]
[1751248542522,26.0,152.28,152.22,7.8458]
[1751248543429,26.0,152.28,152.23,5.25520593]
[1751248543727,31.25351016,152.28,152.23,5.25520593]
[1751248546626,47.27351016,152.28,152.23,5.25520593]
[1751248548429,47.27351016,152.28,152.22,13.10121941]
[1751248548728,31.25351016,152.28,152.22,13.10121941]
[1751248548932,47.27351016,152.28,152.22,13.10121941]
[1751248550234,47.27351016,152.28,152.22,7.8458]
[1751248551512,60.40721123,152.28,152.21,5.74]
[1751248562946,0.28432314,152.27,152.21,5.74]
[1751248563249,26.0,152.25,152.21,5.74]
[1751248563452,42.02,152.24,152.21,5.74]
[1751248564442,5.25520593,152.23,152.21,5.74]
[1751248565233,16.02,152.22,152.21,5.74]
[1751248566436,21.27555117,152.22,152.21,5.74]
[1751248572360,40.20952317,152.22,152.21,0.04]
[1751248572868,26.0,152.19,152.18,0.04]
[1751248573036,194.17658716,152.19,152.18,0.04]
[1751248574439,194.4609103,152.19,152.18,0.04]
[1751248584869,213.11055916,152.19,152.18,0.04]
[1751248588060,47.5609103,152.19,152.18,0.04]
[1751248588474,66.21055916,152.19,152.18,0.04]
[1751248588664,66.21055916,152.19,152.16,5.72]
[1751248588665,18.933972,152.18,152.16,5.72]
[1751248588852,16.02,152.17,152.16,0.04]
[1751248589955,21.27727804,152.17,152.16,0.04]
[1751248596997,21.41943961,152.17,152.16,0.04]
[1751248597298,26.0,152.15,152.14,0.04]
[1751248597465,42.02,152.15,152.14,0.04]
[1751248598867,47.56229224,152.15,152.14,0.04]
[1751248600863,42.30432314,152.15,152.14,0.04]
[1751248601296,42.02,152.15,152.14,0.04]
[1751248601705,47.2779691,152.15,152.14,0.04]
[1751248601868,31.2579691,152.15,152.14,0.04]
[1751248602069,47.2779691,152.15,152.14,0.04]
[1751248604096,42.02,152.15,152.14,0.04]
[1751248604294,47.2779691,152.15,152.14,0.04]
[1751248607192,42.02,152.15,152.14,0.04]
[1751248611188,47.2779691,152.15,152.14,0.04]
[1751248611499,47.56229224,152.15,152.14,0.04]
[1751248616380,66.2119411,152.15,152.14,0.04]
[1751248619094,50.1919411,152.15,152.14,0.04]
[1751248619291,66.2319411,152.15,152.14,0.04]
[1751248620300,71.14755185,152.15,152.14,0.04]
[1751248622003,66.2319411,152.15,152.14,0.04]
[1751248623695,71.14696003,152.15,152.14,0.04]
[1751248624996,66.2319411,152.15,152.14,0.04]
[1751248625500,5.27775209,152.16,152.14,0.04]
[1751248625685,21.2979691,152.15,152.14,0.04]
[1751248626495,0.02,152.16,152.14,0.04]
[1751248626819,16.06,152.16,152.14,0.04]
[1751248627305,0.02,152.16,152.14,0.04]
[1751248627504,0.02,152.16,152.15,1.6536]
[1751248629923,54.933972,152.14,152.13,0.04]
[1751248630094,54.933972,152.14,152.11,0.04]
[1751248630095,28.933972,152.13,152.11,0.04]
[1751248630299,16.50432314,152.12,152.11,0.04]
[1751248630498,45.13674202,152.12,152.11,0.04]
[1751248631197,50.39574806,152.12,152.11,0.04]
[1751248631900,61.86571173,152.12,152.11,0.04]
[1751248632707,10.17448338,152.12,152.11,0.04]
[1751248632896,21.47900604,152.12,152.11,0.04]
[1751248656828,21.49900604,152.12,152.11,0.04]
[1751248659019,21.41900604,152.12,152.11,0.04]
[1751248671637,47.41900604,152.12,152.11,0.04]
[1751248684373,52.34472715,152.12,152.11,0.04]
[1751248684672,26.62905029,152.12,152.11,0.04]
[1751248685029,21.70332918,152.12,152.11,0.04]
[1751248685249,26.62905029,152.12,152.11,0.04]
[1751248685635,21.70332918,152.12,152.11,0.04]
[1751248685838,26.62905029,152.12,152.11,0.04]
[1751248686253,21.70332918,152.12,152.11,0.04]
[1751248686452,26.62905029,152.12,152.11,0.04]
[1751248686867,21.70332918,152.12,152.11,0.04]
[1751248687065,26.62905029,152.12,152.11,0.04]
[1751248687954,21.70332918,152.12,152.11,0.04]
[1751248688135,26.62905029,152.12,152.11,0.04]
[1751248688534,21.70332918,152.12,152.11,0.04]
[1751248688847,26.62905029,152.12,152.11,0.04]
[1751248689234,21.70332918,152.12,152.11,0.04]
[1751248696756,21.41900604,152.12,152.11,0.04]
[1751248711773,47.41900604,152.12,152.11,0.04]
[1751248720487,47.31900604,152.12,152.11,0.04]
[1751248720788,31.27900604,152.12,152.11,0.04]
[1751248721089,47.31900604,152.12,152.11,0.04]
[1751248722386,52.24206106,152.12,152.11,0.04]
[1751248727890,26.24206106,152.12,152.11,0.04]
[1751248728296,21.31900604,152.12,152.11,0.04]
[1751248729298,21.60332918,152.12,152.11,0.04]
[1751248730298,26.5263842,152.12,152.11,0.04]
[1751248730695,21.60332918,152.12,152.11,0.04]
[1751248730997,26.5263842,152.12,152.11,0.04]
[1751248731380,21.60332918,152.12,152.11,0.04]
[1751248731579,26.5263842,152.12,152.11,0.04]
[1751248731976,21.60332918,152.12,152.11,0.04]
[1751248732178,45.17603306,152.12,152.11,0.04]
[1751248732388,0.28432314,152.11,152.1,0.04]
[1751248732696,5.20737816,152.11,152.1,0.04]
[1751248733103,23.85702702,152.11,152.09,5.82]
[1751248733280,16.32432314,152.1,152.09,5.82]
[1751248733477,16.32432314,152.1,152.09,0.04]
[1751248733478,39.89702702,152.1,152.09,0.04]
[1751248734098,26.28432314,152.08,152.07,0.04]
[1751248734298,47.5847124,152.08,152.07,0.04]
[1751248735487,47.30038926,152.08,152.07,0.04]
[1751248735883,31.26038926,152.08,152.07,0.04]
[1751248736100,47.30038926,152.08,152.07,0.04]
[1751248739105,31.26038926,152.08,152.07,0.04]
[1751248739285,47.30038926,152.08,152.07,0.04]
[1751248740699,31.26038926,152.08,152.07,0.04]
[1751248740907,47.30038926,152.08,152.07,0.04]
[1751248747182,0.02,152.12,152.07,0.04]
[1751248747511,16.04,152.11,152.07,0.04]
[1751248747694,26.0,152.08,152.07,0.04]
[1751248747885,16.04,152.08,152.07,0.04]
[1751248750105,5.26029403,152.09,152.07,0.04]
[1751248750310,16.04,152.08,152.07,0.04]
[1751248751304,47.30038926,152.08,152.07,0.04]
[1751248752809,47.30038926,152.08,152.07,5.74]
[1751248756405,26.0,152.08,152.07,5.74]
[1751248756610,42.04,152.08,152.07,5.74]
[1751248767924,5.25948183,152.11,152.07,5.74]
[1751248768224,42.04,152.1,152.07,5.74]
[1751248768417,16.04,152.09,152.07,5.74]
[1751248773629,16.04,152.08,152.07,5.74]
[1751248773807,16.04,152.09,152.07,5.74]
[1751248774012,16.04,152.09,152.07,11.00069649]
[1751248774230,42.04,152.1,152.07,11.00069649]
[1751248775434,16.04,152.1,152.07,11.00069649]
[1751248781246,16.04,152.1,152.07,5.74]
[1751248782330,21.29973778,152.1,152.07,5.74]
[1751248783459,16.04,152.1,152.07,5.74]
[1751248783819,21.29975334,152.1,152.07,5.74]
[1751248789545,26.0,152.08,152.07,5.74]
[1751248790326,16.02,152.09,152.07,5.74]
[1751248791334,26.0,152.1,152.07,5.74]
[1751248791661,42.02,152.1,152.07,5.74]
[1751248792837,26.0,152.1,152.07,5.74]
[1751248793034,42.02,152.1,152.07,5.74]
[1751248794550,47.27981153,152.1,152.07,5.74]
[1751248796748,47.27981153,152.1,152.08,5.68]
[1751248800545,42.02,152.1,152.08,5.68]
[1751248801247,5.27926338,152.12,152.08,5.68]
[1751248801248,26.02,152.12,152.08,5.68]
[1751248801438,31.27910153,152.12,152.08,5.68]
[1751248801641,16.02,152.11,152.08,5.68]
[1751248801950,16.02,152.1,152.08,5.68]
[1751248802451,16.02,152.1,152.08,10.94037184]
[1751248802851,26.02,152.12,152.08,10.94037184]
[1751248803047,16.02,152.11,152.08,10.94037184]
[1751248803625,16.02,152.11,152.08,5.68]
[1751248804546,31.27902222,152.12,152.08,5.68]
[1751248804750,16.02,152.11,152.08,5.68]
[1751248805142,31.27902222,152.12,152.08,5.68]
[1751248805348,16.02,152.11,152.08,5.68]
[1751248808058,21.2795253,152.11,152.08,5.68]
[1751248809556,16.02,152.11,152.08,5.68]
[1751248810830,21.27945424,152.11,152.08,5.68]
[1751248811654,26.0,152.09,152.08,5.68]
[1751248811854,42.02,152.09,152.08,5.68]
[1751248812445,42.30432314,152.09,152.08,5.68]
[1751248812647,42.30432314,152.09,152.07,0.04]
[1751248812839,4.9193592,152.08,152.07,0.04]
[1751248813034,0.28432314,152.08,152.07,0.04]
[1751248813236,44.933972,152.08,152.07,0.04]
[1751248813443,0.28432314,152.07,152.06,0.04]
[1751248813658,16.30432314,152.07,152.06,0.04]
[1751248813954,28.08516938,152.07,152.06,0.04]
[1751248814160,23.16915832,152.07,152.06,0.04]
[1751248814454,41.81880718,152.07,152.06,0.04]
[1751248814656,21.28073518,152.07,152.06,0.04]
[1751248815455,47.28073518,152.07,152.06,0.04]
[1751248818343,21.28073518,152.07,152.06,0.04]
[1751248822067,40.21470718,152.07,152.06,0.04]
[1751248822564,18.64964886,152.06,152.05,0.04]
[1751248822760,165.54964886,152.06,152.05,0.04]
[1751248823060,0.28432314,152.05,152.04,0.04]
[1751248823251,16.30432314,152.05,152.04,0.04]
[1751248823448,34.953972,152.05,152.04,0.04]
[1751248823654,40.21539916,152.05,152.04,0.04]
[1751248827860,42.30432314,152.02,152.01,5.42109384]
[1751248828064,47.5667886,152.02,152.01,5.42109384]
[1751248828654,31.26246546,152.02,152.01,5.42109384]
[1751248828964,47.28246546,152.02,152.01,5.42109384]
[1751248832166,42.02,152.02,152.01,5.42109384]
[1751248832358,26.0,152.02,152.01,5.42109384]
[1751248832563,42.02,152.02,152.01,5.42109384]
[1751248834975,26.0,152.02,152.01,5.42109384]
[1751248835152,42.02,152.02,152.01,5.42109384]
[1751248835770,47.28246546,152.02,152.01,5.42109384]
[1751248835958,47.5667886,152.02,152.01,5.42109384]
[1751248836161,47.28246546,152.02,152.01,5.42109384]
[1751248836567,42.02,152.02,152.01,5.42109384]
[1751248838469,47.28246546,152.02,152.01,5.42109384]
[1751248840478,42.02,152.02,152.01,5.42109384]
[1751248841348,26.0,152.02,152.01,5.42109384]
[1751248841675,42.02,152.02,152.01,5.42109384]
[1751248841870,155.1304,152.1,152.01,5.42109384]
[1751248842070,5.26004339,152.09,152.01,10.68390549]
[1751248842377,26.0,152.05,152.01,10.68390549]
[1751248842575,42.02,152.05,152.01,10.68390549]
[1751248845569,42.02,152.05,152.01,5.42109384]
[1751248845765,47.28143966,152.05,152.01,5.42109384]
[1751248849874,42.02,152.05,152.01,5.42109384]
[1751248850255,47.28143856,152.05,152.01,5.42109384]
[1751248852373,13.15110395,152.08,152.01,5.42109384]
[1751248852576,5.26073518,152.07,152.01,5.42109384]
[1751248852771,26.0,152.04,152.01,10.68387115]
[1751248852986,26.0,152.04,152.02,1.5526]
[1751248855275,16.2,152.05,152.02,1.5526]
[1751248855476,42.2,152.05,152.02,1.5526]
[1751248860587,26.0,152.05,152.02,1.5526]
[1751248860785,42.18,152.05,152.02,1.5526]
[1751248862495,47.44162332,152.05,152.02,1.5526]
[1751248863083,26.0,152.02,152.01,5.42109384]
[1751248864185,31.26246546,152.02,152.01,5.42109384]
[1751248865494,26.0,152.02,152.01,5.42109384]
[1751248865887,31.26246546,152.02,152.01,5.42109384]
[1751248867577,26.0,152.02,152.01,5.42109384]
[1751248880798,31.26246546,152.02,152.01,5.42109384]
[1751248883914,31.40683555,152.02,152.01,5.42109384]
[1751248886221,26.14437009,152.02,152.01,5.42109384]
[1751248886998,26.14437009,152.02,152.01,10.68390549]
[1751248887416,26.14437009,152.02,152.01,5.42109384]
[1751248889890,0.14437009,152.02,152.01,5.42109384]
[1751248895122,0.14437009,152.02,152.01,10.68390549]
[1751248898001,0.14437009,152.02,152.01,5.42109384]
[1751248898832,0.14437009,152.02,152.01,10.68390549]
[1751248899021,0.14437009,152.02,152.01,16.52390549]
[1751248901430,0.14437009,152.02,152.01,11.26109384]
[1751248902716,0.14437009,152.02,152.01,16.52390549]
[1751248903807,0.27442871,152.02,152.01,16.52390549]
[1751248904858,0.27442871,152.02,152.01,35.17355435]
[1751248905010,0.13005862,152.02,152.01,42.04987749]
[1751248905429,0.13005862,152.02,152.01,43.68527749]
[1751248911826,0.13005862,152.02,152.01,53.68527749]
[1751248912224,0.13005862,152.02,152.01,43.68527749]
[1751248912528,0.13005862,152.02,152.01,53.68527749]
[1751248913427,0.13005862,152.02,152.01,43.68527749]
[1751248918058,0.13830245,152.03,152.02,44.933972]
[1751248918226,0.13830245,152.03,152.02,61.36876167]
[1751248919465,0.13830245,152.03,152.02,76.63122713]
[1751248923460,0.13830245,152.03,152.02,66.63122713]
[1751248923962,0.25840119,152.03,152.02,76.63122713]
[1751248924134,0.25840119,152.03,152.02,66.63122713]
[1751248925029,0.12009874,152.03,152.02,66.63122713]
[1751248931162,0.12009874,152.03,152.02,24.19643746]
[1751248931358,0.12009874,152.03,152.02,40.25643746]
[1751248934461,0.12009874,152.03,152.02,40.27643746]
[1751248936257,0.12009874,152.03,152.02,40.61127021]
[1751248938462,0.12009874,152.03,152.02,66.61127021]
[1751248938663,0.12816536,152.05,152.04,44.64964886]
[1751248938858,0.12816536,152.05,152.04,61.013972]
[1751248939055,0.12816536,152.05,152.04,35.013972]
[1751248939763,0.12816536,152.05,152.04,34.72964886]
[1751248940745,0.12816536,152.05,152.04,39.99142207]
[1751248940948,0.12816536,152.05,152.04,23.91142207]
[1751248941157,0.12816536,152.05,152.04,39.99142207]
[1751248943874,0.24940614,152.05,152.04,39.99142207]
[1751248945070,0.12124078,152.05,152.04,23.91142207]
[1751248946678,0.12124078,152.05,152.04,24.53031856]
[1751248947369,0.12124078,152.05,152.04,29.81916363]
[1751248948564,0.12020841,152.06,152.05,18.933972]
[1751248948754,0.12020841,152.06,152.05,40.25539916]
[1751248956068,0.13849877,152.07,152.05,40.25539916]
[1751248956271,0.13849877,152.07,152.06,0.33440015]
[1751248957178,0.13849877,152.07,152.06,24.24513016]
[1751248957364,0.13849877,152.07,152.06,34.24513016]
[1751248963573,0.13849877,152.07,152.06,34.5294533]
[1751248963775,0.13437843,152.08,152.07,18.64964886]
[1751248963979,0.25603139,152.08,152.07,34.68964886]
[1751248965063,0.12165296,152.08,152.07,39.95038404]
[1751248966662,0.14256884,152.1,152.09,44.79181043]
[1751248966965,0.14256884,152.1,152.09,67.02800479]
[1751248967697,0.12118311,152.11,152.1,18.64964886]
[1751248969284,0.12118311,152.11,152.1,23.90934642]
[1751248971597,0.12118311,152.11,152.1,24.19366956]
[1751248975706,0.12118311,152.11,152.1,23.90934642]
[1751248975892,0.12118311,152.11,152.1,5.25969756]
[1751248977492,0.12118311,152.11,152.09,10.97990711]
[1751248979313,0.12118311,152.11,152.09,5.72]
[1751248980017,8.0759,152.1,152.01,18.57734648]
[1751248980317,26.0,152.09,152.02,5.7]
[1751248981096,26.0,152.09,152.02,10.96246546]
[1751248981297,31.2600516,152.09,152.02,10.96246546]
[1751248985218,8.0759,152.1,152.03,18.64964886]
[1751248987324,8.0759,152.1,152.04,5.26177321]
[1751248992511,13.33559824,152.1,152.04,5.26177321]
[1751248992735,8.0759,152.1,152.04,5.26177321]
[1751248995831,13.33570105,152.1,152.03,5.26211931]
[1751249008417,26.0,152.07,152.02,10.96233388]
[1751249008619,26.0,152.06,152.02,5.7]
[1751249013941,26.0,152.06,152.02,10.96238864]
[1751249024429,26.0,152.06,152.02,5.7]
[1751249024646,1.6109,152.05,152.02,5.7]
[1751249025450,1.6109,152.05,152.03,5.7]
[1751249027156,1.6109,152.05,152.01,10.68388105]
[1751249027358,1.6109,152.05,152.04,5.7]
[1751249028035,1.575,152.09,152.04,5.7]
[1751249028252,168.21958108,152.11,152.05,5.26142716]
[1751249028558,26.0,152.1,152.05,5.26142716]
[1751249029457,31.25978368,152.1,152.05,5.26142716]
[1751249030439,26.0,152.1,152.05,5.26142716]
[1751249030739,26.0,152.09,152.05,5.26142716]
[1751249036532,26.0,152.09,152.04,5.7]
[1751249036737,26.0,152.08,152.04,10.96164752]
[1751249036940,26.0,152.08,152.04,5.7]
[1751249037860,31.26058016,152.08,152.04,5.7]
[1751249040835,26.0,152.08,152.04,10.96170021]
[1751249047560,5.26013478,152.09,152.04,10.96170021]
[1751249051699,26.02,152.1,152.04,10.96170021]
[1751249053482,0.02,152.1,152.06,5.26108115]
[1751249054051,146.85423649,152.11,152.06,18.41378403]
[1751249058151,0.02,152.12,152.06,18.41378403]
[1751249065277,0.02,152.12,152.06,18.45378403]
[1751249072577,0.02,152.12,152.08,0.28432314]
[1751249073584,0.02,152.12,152.09,5.26004339]
[1751249075357,0.02,152.12,152.08,18.41085411]
[1751249075562,0.02,152.12,152.09,5.7]
[1751249077084,0.02,152.12,152.1,5.25969756]
[1751249079489,0.02,152.12,152.09,10.95990829]
[1751249083989,0.02,152.12,152.09,5.7]
[1751249097701,0.02,152.12,152.09,5.74]
[1751249104779,0.02,152.12,152.09,10.99995212]
[1751249105204,0.02,152.12,152.09,5.74]
[1751249105411,26.0,152.11,152.09,0.04]
[1751249105595,26.0,152.11,152.1,5.68]
[1751249107535,31.25935178,152.11,152.1,5.68]
[1751249111013,47.29935178,152.11,152.1,5.68]
[1751249117492,42.04,152.11,152.1,5.68]
[1751249121245,26.0,152.11,152.1,5.68]
[1751249122007,0.02,152.12,152.1,5.68]
[1751249122214,0.02,152.12,152.1,10.93959896]
[1751249125916,16.02,152.11,152.09,5.72]
[1751249127834,21.27947524,152.11,152.09,5.72]
[1751249156454,26.0,152.1,152.09,5.72]
[1751249156878,0.02,152.12,152.09,5.72]
[1751249157051,0.02,152.12,152.1,1.5528]
[1751249158570,0.02,152.12,152.09,5.72]
[1751249165459,16.02,152.11,152.09,5.72]
[1751249165771,26.0,152.1,152.09,5.72]
[1751249166578,31.25969756,152.1,152.09,5.72]
[1751249179586,31.5440207,152.1,152.09,5.72]
[1751249179890,197.04790605,152.1,152.09,5.72]
[1751249180074,197.04790605,152.1,152.09,0.04]
[1751249182673,178.39825719,152.1,152.09,0.04]
[1751249183471,194.41825719,152.1,152.09,0.04]
[1751249184368,178.39825719,152.1,152.09,0.04]
[1751249184569,194.41825719,152.1,152.09,0.04]
[1751249187097,213.06790605,152.1,152.09,0.04]
[1751249187275,26.0,152.07,152.06,0.04]
[1751249187603,42.30432314,152.07,152.06,0.04]
[1751249187778,47.56505832,152.07,152.06,0.04]
[1751249200699,47.28073518,152.07,152.06,0.04]
[1751249205006,152.11406266,152.1,152.06,0.04]
[1751249205189,16.02,152.09,152.06,0.04]
[1751249205392,26.0,152.07,152.06,0.04]
[1751249205585,42.02,152.07,152.06,0.04]
[1751249211586,47.28073518,152.07,152.06,0.04]
[1751249212897,42.02,152.07,152.06,0.04]
[1751249216713,146.87423649,152.1,152.06,0.04]
[1751249216899,26.0,152.08,152.06,0.04]
[1751249217807,0.02,152.1,152.06,0.04]
[1751249218118,26.0,152.09,152.06,0.04]
[1751249218793,16.02,152.08,152.06,0.04]
[1751249220918,16.02,152.09,152.06,0.04]
[1751249223002,21.28012406,152.09,152.06,0.04]
[1751249224913,16.02,152.09,152.06,0.04]
[1751249225822,21.2801251,152.09,152.06,0.04]
[1751249228901,26.02,152.1,152.06,0.04]
[1751249229109,0.02,152.1,152.06,0.04]
[1751249230414,5.27978109,152.1,152.06,0.04]
[1751249230817,0.02,152.1,152.06,0.04]
[1751249232121,0.02,152.1,152.07,8.0098]
[1751249233013,0.02,152.1,152.08,5.26038926]
[1751249236028,0.02,152.1,152.09,18.64964886]
[1751249236326,0.02,152.1,152.09,23.90969225]
[1751249239345,0.02,152.1,152.09,5.26004339]
[1751249244136,0.02,152.1,152.08,5.26038926]
[1751249245815,0.02,152.1,152.08,5.30038926]
[1751249247632,0.02,152.1,152.08,23.95003812]
[1751249247817,0.02,152.1,152.09,18.64964886]
[1751249248439,0.02,152.1,152.09,18.933972]
[1751249250945,0.02,152.1,152.09,5.54436653]
[1751249252431,0.02,152.1,152.09,23.90969225]
[1751249256132,0.02,152.1,152.09,24.19401539]
[1751249256340,0.02,152.1,152.09,24.52804818]